bitfinex/quotes_BTCUSD_20251207
["timestamp","ask_amount","ask_price","bid_price","bid_amount"]
[1765144861867,0.06852299,90204.0,90203.0,0.22335286]
[1765144862193,0.06252299,90204.0,90203.0,0.22335286]
[1765144862564,0.06352299,90204.0,90203.0,0.22335286]
[1765144862761,0.06452299,90204.0,90203.0,0.00163075]
[1765144863218,0.06252299,90204.0,90203.0,0.00163075]
[1765144863616,0.06452299,90204.0,90203.0,0.00163075]
[1765144864751,0.06252299,90204.0,90203.0,0.00163075]
[1765144864868,0.06452299,90204.0,90203.0,0.00163075]
[1765144865064,0.15173299,90204.0,90203.0,0.00163075]
[1765144865342,0.15173299,90204.0,90131.0,0.13758687]
[1765144865343,0.01108967,90174.0,90170.0,0.01109016]
[1765144865574,0.01108967,90174.0,90165.0,0.2218141]
[1765144865575,0.06207959,90170.0,90160.0,0.0447]
[1765144865771,0.06207959,90170.0,90154.0,0.2218423]
[1765144865772,0.01109114,90162.0,90159.0,0.01109151]
[1765144865912,0.01109139,90160.0,90154.0,0.01109213]
[1765144866118,0.01109151,90159.0,90156.0,0.01109188]
[1765144866361,0.01109151,90159.0,90154.0,0.01109213]
[1765144866362,0.01109102,90163.0,90159.0,0.01109151]
[1765144866567,0.00094,90160.0,90159.0,0.00011806]
[1765144866728,0.04529,90164.0,90161.0,0.23291667]
[1765144866932,0.04529,90164.0,90162.0,0.0021847]
[1765144867156,0.06207959,90170.0,90164.0,0.0110909]
[1765144867318,0.06207959,90170.0,90167.0,0.2329001]
[1765144867522,0.01109102,90163.0,90158.0,0.01109163]
[1765144867721,0.0110909,90164.0,90161.0,0.01109127]
[1765144868078,0.0110909,90164.0,90159.0,0.22194746]
[1765144868079,0.04674,90162.0,90159.0,0.00011806]
[1765144868236,0.29538133,90165.0,90163.0,0.22182048]
[1765144868237,0.06247353,90165.0,90163.0,0.22182048]
[1765144868640,0.06247353,90165.0,90162.0,0.01109114]
[1765144868869,0.003,90164.0,90163.0,0.22182048]
[1765144869477,0.06247353,90165.0,90162.0,0.01109114]
[1765144869650,0.06247353,90165.0,90161.0,0.23291667]
[1765144869651,0.06252299,90161.0,90159.0,0.00011806]
[1765144869971,0.10926299,90161.0,90159.0,0.00011806]
[1765144871842,0.11126299,90161.0,90159.0,0.00011806]
[1765144872162,0.37484085,90160.0,90159.0,0.00011806]
[1765144872536,0.37645372,90160.0,90159.0,0.00143327]
[1765144872730,0.37645372,90160.0,90098.0,0.22645628]
[1765144872731,0.01109459,90134.0,90128.0,0.01109533]
[1765144872911,0.11189299,90131.0,90130.0,0.00031836]
[1765144874122,0.06252299,90131.0,90130.0,0.00031836]
[1765144874725,0.06252299,90131.0,90130.0,0.13329051]
[1765144874927,0.06252299,90131.0,90130.0,0.22721051]
[1765144875571,0.15348299,90131.0,90130.0,0.00131836]
[1765144875719,0.15448299,90131.0,90130.0,0.00031836]
[1765144875935,0.15448299,90131.0,90130.0,0.01231836]
[1765144876837,0.15509586,90131.0,90130.0,0.01231836]
[1765144877042,0.15509586,90131.0,90130.0,0.00031836]
[1765144877248,0.15509586,90131.0,90130.0,0.00431836]
[1765144877442,0.15509586,90131.0,90130.0,0.00631836]
[1765144877649,0.06252299,90114.0,90109.0,0.01109767]
[1765144877867,0.10746299,90111.0,90110.0,0.01169264]
[1765144878070,0.10746299,90111.0,90110.0,0.0005951]
[1765144878494,0.19877299,90111.0,90110.0,0.0005951]
[1765144878915,0.20038586,90111.0,90110.0,0.00206091]
[1765144879341,0.21818586,90111.0,90110.0,0.00206091]
[1765144880027,0.06252299,90111.0,90110.0,0.15580091]
[1765144880250,0.06952299,90111.0,90110.0,0.2013755]
[1765144880447,0.06552299,90111.0,90110.0,0.2013755]
[1765144880645,0.003,90111.0,90110.0,0.2013755]
[1765144880846,0.01109422,90137.0,90110.0,0.2013755]
[1765144880847,0.01109299,90147.0,90141.0,0.01109373]
[1765144881058,0.01109299,90147.0,90135.0,0.01109446]
[1765144881059,0.01109299,90147.0,90137.0,0.01109422]
[1765144881266,0.01109274,90149.0,90144.0,0.22186723]
[1765144881470,0.05783127,90161.0,90156.0,0.23292738]
[1765144881629,0.01109114,90162.0,90156.0,0.01109188]
[1765144881829,0.01109114,90162.0,90148.0,0.07191286]
[1765144881830,0.0736161,90146.0,90139.0,0.01109397]
[1765144882083,0.0736161,90146.0,90143.0,0.01109348]
[1765144882084,0.06252299,90146.0,90143.0,0.01109348]
[1765144882382,0.01109385,90140.0,90135.0,0.01109446]
[1765144882557,0.07361696,90139.0,90135.0,0.01109446]
[1765144882760,0.06252299,90136.0,90133.0,0.01109471]
[1765144883027,0.06252299,90136.0,90127.0,0.22190898]
[1765144883028,0.01109557,90126.0,90121.0,0.23301958]
[1765144883160,0.06252299,90125.0,90122.0,0.01109606]
[1765144883347,0.06252299,90126.0,90124.0,0.01109582]
[1765144883859,0.06252299,90126.0,90122.0,0.01109606]
[1765144883860,0.07361856,90126.0,90122.0,0.01109606]
[1765144884103,0.23298438,90135.0,90129.0,0.22190254]
[1765144884268,0.06252299,90132.0,90131.0,0.22189923]
[1765144884491,0.06252299,90133.0,90130.0,0.01109508]
[1765144884855,0.0736177,90133.0,90129.0,0.0110952]
[1765144885051,0.06252299,90127.0,90125.0,0.0110957]
[1765144885277,0.06252299,90123.0,90119.0,0.01109643]
[1765144885475,0.28444438,90122.0,90110.0,0.0002]
[1765144885686,0.36827438,90122.0,90110.0,0.0002]
[1765144886419,0.06252299,90122.0,90118.0,0.04463]
[1765144886609,0.36827438,90122.0,90121.0,0.00125505]
[1765144886775,0.06252299,90122.0,90121.0,0.00125505]
[1765144886982,0.06752299,90122.0,90121.0,0.00125505]
[1765144887198,0.06252299,90122.0,90121.0,0.00125505]
[1765144887517,0.07152299,90122.0,90121.0,0.00125505]
[1765144887877,0.06252299,90122.0,90121.0,0.2231789]
[1765144888076,0.06652299,90122.0,90121.0,0.27548277]
[1765144888293,0.009,90122.0,90121.0,0.42922277]
[1765144888809,0.07152299,90122.0,90121.0,0.00125505]
[1765144889343,0.06252299,90122.0,90121.0,0.2231789]
[1765144889758,0.06952299,90122.0,90121.0,0.2231789]
[1765144890056,0.06552299,90122.0,90121.0,0.2231789]
[1765144890180,0.06652299,90122.0,90121.0,0.2231789]
[1765144890386,0.06952299,90122.0,90121.0,0.2231789]
[1765144890965,0.06252299,90122.0,90121.0,0.2231789]
[1765144891305,0.06552299,90122.0,90121.0,0.2231789]
[1765144891691,0.06552299,90122.0,90121.0,0.42922182]
[1765144891692,0.06452299,90122.0,90121.0,0.42922182]
[1765144891893,0.06452299,90122.0,90121.0,0.27548182]
[1765144892090,0.06452299,90122.0,90121.0,0.42922182]
[1765144892533,0.06152299,90122.0,90121.0,0.42922182]
[1765144892957,0.06252299,90122.0,90121.0,0.42922182]
[1765144893263,0.05852299,90122.0,90121.0,0.42922182]
[1765144893405,0.05752299,90122.0,90121.0,0.42922182]
[1765144893604,0.05852299,90122.0,90121.0,0.42922182]
[1765144893857,0.05752299,90122.0,90121.0,0.43222182]
[1765144894275,0.05752299,90122.0,90121.0,0.44322182]
[1765144894487,0.05752299,90122.0,90121.0,0.28948182]
[1765144894683,0.05752299,90122.0,90121.0,0.01525505]
[1765144895024,0.36023438,90122.0,90121.0,0.01525505]
[1765144895224,0.13831299,90122.0,90121.0,0.01525505]
[1765144895434,0.05752299,90122.0,90121.0,0.3879189]
[1765144895655,0.02812446,90145.0,90121.0,0.3879189]
[1765144895656,0.02812446,90145.0,90140.0,0.01109385]
[1765144895937,0.01703123,90145.0,90144.0,0.00044855]
[1765144896138,0.01006974,90146.0,90144.0,0.00044855]
[1765144896373,0.01006974,90146.0,90143.0,0.23296188]
[1765144896577,0.04937,90147.0,90145.0,0.00041864]
[1765144896832,0.04937,90147.0,90137.0,0.23297703]
[1765144896833,0.06252299,90142.0,90137.0,0.23297703]
[1765144897037,0.07361733,90136.0,90133.0,0.01109471]
[1765144897235,0.0752302,90136.0,90132.0,0.01109483]
[1765144897432,0.06252299,90134.0,90127.0,0.01109545]
[1765144897682,0.06252299,90122.0,90121.0,0.23313685]
[1765144898034,0.34798725,90122.0,90121.0,0.00011843]
[1765144898267,0.12606586,90122.0,90121.0,0.00011843]
[1765144898684,0.14555586,90122.0,90121.0,0.00011843]
[1765144899349,0.06252299,90115.0,90113.0,0.23303961]
[1765144899575,0.06252299,90121.0,90117.0,0.01109668]
[1765144899781,0.07361942,90119.0,90116.0,0.0110968]
[1765144899986,0.06252299,90120.0,90118.0,0.01109656]
[1765144900194,0.0736193,90120.0,90116.0,0.23303243]
[1765144900616,0.28446408,90114.0,90113.0,0.0003951]
[1765144900842,0.06252299,90114.0,90113.0,0.0003951]
[1765144901066,0.14393299,90114.0,90113.0,0.0003951]
[1765144901286,0.15402306,90114.0,90113.0,0.0003951]
[1765144903064,0.17382306,90114.0,90113.0,0.0003951]
[1765144903275,0.17582306,90114.0,90113.0,0.0003951]
[1765144903479,0.17582306,90114.0,90113.0,0.00177113]
[1765144903910,0.20482718,90114.0,90113.0,0.00177113]
[1765144904120,0.17582306,90114.0,90113.0,0.00177113]
[1765144904526,0.202887,90114.0,90113.0,0.00177113]
[1765144904738,0.200887,90114.0,90113.0,0.00177113]
[1765144904948,0.207887,90114.0,90113.0,0.00177113]
[1765144905088,0.18282306,90114.0,90113.0,0.00177113]
[1765144905291,0.211887,90114.0,90113.0,0.00177113]
[1765144905490,0.18282306,90114.0,90113.0,0.00177113]
[1765144905698,0.18282306,90114.0,90100.0,0.0002]
[1765144905699,0.6074961,90101.0,90100.0,0.0002]
[1765144906051,0.67649413,90101.0,90100.0,0.0002]
[1765144906256,0.67649413,90101.0,90100.0,0.00058903]
[1765144906257,0.75672413,90101.0,90100.0,0.00058903]
[1765144907046,0.76872413,90101.0,90100.0,0.00058903]
[1765144907301,0.79532112,90101.0,90100.0,0.00058903]
[1765144907492,0.75672413,90101.0,90100.0,0.00058903]
[1765144907619,0.75672413,90101.0,90075.0,4.008e-05]
[1765144907620,0.28455771,90076.0,90075.0,4.008e-05]
[1765144907819,0.28455771,90076.0,90075.0,0.00015858]
[1765144907820,0.31322991,90076.0,90075.0,0.00015858]
[1765144908077,0.40755991,90076.0,90075.0,0.00015858]
[1765144908655,0.40955991,90076.0,90075.0,0.00015858]
[1765144909235,0.39748771,90076.0,90075.0,0.00015858]
[1765144909486,0.40148771,90076.0,90075.0,0.00115858]
[1765144910088,0.40148771,90076.0,90075.0,0.00415858]
[1765144910495,0.40148771,90076.0,90075.0,0.00115858]
[1765144910699,0.40448771,90076.0,90075.0,0.00115858]
[1765144910954,0.40048771,90076.0,90075.0,0.00015858]
[1765144911127,0.40148771,90076.0,90075.0,0.00115858]
[1765144911453,0.40410058,90076.0,90075.0,0.00115858]
[1765144911651,0.40010058,90076.0,90075.0,0.00015858]
[1765144911947,0.40410058,90076.0,90075.0,0.00015858]
[1765144912519,0.39910058,90076.0,90075.0,0.00015858]
[1765144912725,0.40310058,90076.0,90075.0,0.00115858]
[1765144912926,0.40610058,90076.0,90075.0,0.00115858]
[1765144913108,0.40610058,90076.0,90075.0,0.00190698]
[1765144913918,0.40600058,90076.0,90075.0,0.00190698]
[1765144915614,0.38820058,90076.0,90075.0,0.00190698]
[1765144915820,0.40600058,90076.0,90075.0,0.00190698]
[1765144916467,0.08973586,90076.0,90075.0,0.00190698]
[1765144916671,0.18406586,90076.0,90075.0,0.00190698]
[1765144916833,0.02721287,90076.0,90075.0,0.00190698]
[1765144917249,0.007,90076.0,90075.0,0.00190698]
[1765144917652,0.007,90076.0,90075.0,0.15886698]
[1765144918113,0.003,90076.0,90075.0,0.15786698]
[1765144918468,0.005,90076.0,90075.0,0.00090698]
[1765144918684,0.002,90076.0,90075.0,0.00090698]
[1765144918887,0.06252299,90086.0,90081.0,0.01110112]
[1765144919087,0.07362349,90086.0,90082.0,0.01110099]
[1765144919290,0.06252299,90085.0,90080.0,0.01110124]
[1765144919506,0.06252299,90085.0,90084.0,0.01110075]
[1765144919713,0.06252299,90091.0,90089.0,0.01110013]
[1765144919924,0.06252299,90091.0,90089.0,0.23310182]
[1765144920612,0.06252299,90079.0,90077.0,0.01110161]
[1765144920813,0.002,90086.0,90085.0,0.22201254]
[1765144921024,0.002,90086.0,90077.0,0.01110161]
[1765144921025,0.04884,90078.0,90050.0,0.00099999]
[1765144921271,0.04884,90078.0,90053.0,0.01110457]
[1765144921272,0.54668472,90076.0,90053.0,0.01110457]
[1765144921473,0.22203472,90076.0,90073.0,0.04455]
[1765144921619,0.22203472,90076.0,90069.0,0.01110259]
[1765144921819,0.38571771,90076.0,90051.0,0.09455]
[1765144922019,0.38571771,90076.0,90056.0,0.0111042]
[1765144922224,0.38571771,90076.0,90049.0,0.05580506]
[1765144922479,0.38571771,90076.0,90047.0,0.01110531]
[1765144922624,1.37040871,90076.0,90046.0,0.01119543]
[1765144922954,1.37040871,90076.0,90075.0,0.00115858]
[1765144923179,1.37040871,90076.0,90046.0,9e-05]
[1765144923180,0.06252299,90048.0,90046.0,9e-05]
[1765144923338,0.33131922,90047.0,90046.0,9e-05]
[1765144923548,0.33609922,90047.0,90046.0,9e-05]
[1765144923748,0.19656299,90047.0,90046.0,9e-05]
[1765144924429,0.06252299,90047.0,90046.0,9e-05]
[1765144924766,0.06252299,90047.0,90046.0,0.21181263]
[1765144924966,0.06252299,90047.0,90046.0,0.23181263]
[1765144925284,0.06552299,90047.0,90046.0,0.11319263]
[1765144925471,0.06252299,90047.0,90046.0,0.11319263]
[1765144925667,0.06252299,90047.0,90046.0,0.06996707]
[1765144925899,0.323,90080.0,90075.0,0.01110185]
[1765144926097,0.00161287,90076.0,90075.0,0.23313904]
[1765144926503,0.00011815,90080.0,90079.0,0.22202733]
[1765144926905,0.00011815,90080.0,90079.0,0.29196797]
[1765144927114,0.00011815,90080.0,90079.0,0.22202733]
[1765144928576,0.00011815,90080.0,90079.0,0.23002733]
[1765144930856,0.00011815,90080.0,90079.0,0.39399733]
[1765144931445,0.00011815,90080.0,90079.0,0.39462596]
[1765144931578,0.00011815,90080.0,90079.0,0.23065596]
[1765144932380,0.00011815,90080.0,90079.0,0.00862863]
[1765144932584,0.00011815,90080.0,90079.0,0.00062863]
[1765144932805,0.06364114,90080.0,90079.0,0.03162863]
[1765144933711,0.06364114,90080.0,90079.0,0.18885863]
[1765144933939,0.06464114,90080.0,90079.0,0.28668604]
[1765144934165,0.06364114,90080.0,90079.0,0.00962863]
[1765144934371,0.06264114,90080.0,90079.0,0.00062863]
[1765144934579,0.06264114,90080.0,90079.0,0.00162863]
[1765144935003,0.06264114,90080.0,90079.0,0.02662863]
[1765144935210,0.06264114,90080.0,90079.0,0.00062863]
[1765144935450,0.06264114,90080.0,90079.0,0.00162863]
[1765144935665,0.06264114,90080.0,90079.0,0.00562863]
[1765144935886,0.15637114,90080.0,90079.0,0.00562863]
[1765144936093,0.15798401,90080.0,90079.0,0.00562863]
[1765144936713,0.15798401,90080.0,90079.0,0.00462863]
[1765144937151,0.15898401,90080.0,90079.0,0.00462863]
[1765144937359,0.15898401,90080.0,90079.0,0.00062863]
[1765144937784,0.16198401,90080.0,90079.0,0.00062863]
[1765144938746,0.49507185,90080.0,90079.0,0.00062863]
[1765144938974,0.5183188,90080.0,90079.0,0.00062863]
[1765144939760,0.5173188,90080.0,90079.0,0.00062863]
[1765144939963,0.5213188,90080.0,90079.0,0.00162863]
[1765144940185,1.0164998,90080.0,90079.0,0.00162863]
[1765144940384,1.0134998,90080.0,90079.0,0.00162863]
[1765144940613,1.0244998,90080.0,90079.0,0.00162863]
[1765144941025,1.0134998,90080.0,90079.0,0.00162863]
[1765144941734,1.0244998,90080.0,90079.0,0.00162863]
[1765144941904,0.5293188,90080.0,90079.0,0.00162863]
[1765144942104,0.5471188,90080.0,90079.0,0.00162863]
[1765144942684,0.5293188,90080.0,90079.0,0.00162863]
[1765144942887,0.20087185,90080.0,90079.0,0.00162863]
[1765144943228,0.86254785,90080.0,90079.0,0.00162863]
[1765144943428,0.88579048,90080.0,90079.0,0.00162863]
[1765144943815,0.85822648,90080.0,90079.0,0.00062863]
[1765144944021,0.84722648,90080.0,90079.0,0.00062863]
[1765144944206,0.85922648,90080.0,90079.0,0.00162863]
[1765144944611,0.84722648,90080.0,90079.0,0.00062863]
[1765144945024,0.85522648,90080.0,90079.0,0.00062863]
[1765144946427,0.54411448,90080.0,90079.0,0.00162863]
[1765144946963,0.45228448,90080.0,90079.0,0.00162863]
[1765144947166,0.54411448,90080.0,90079.0,0.00162863]
[1765144947436,0.19787185,90080.0,90079.0,0.00162863]
[1765144947575,0.09595401,90080.0,90079.0,0.00162863]
[1765144947774,0.09405401,90080.0,90079.0,0.00162863]
[1765144948204,0.00573102,90080.0,90079.0,0.00162863]
[1765144948400,0.00411815,90080.0,90079.0,0.00162863]
[1765144948736,0.01011815,90080.0,90079.0,0.15885863]
[1765144948903,0.00611815,90080.0,90079.0,0.15785863]
[1765144949118,0.07164114,90080.0,90079.0,0.06167863]
[1765144949303,0.00911815,90080.0,90079.0,0.00162863]
[1765144949642,0.00911815,90080.0,90079.0,0.00062863]
[1765144949643,0.07054114,90080.0,90079.0,0.00062863]
[1765144949799,0.15637114,90080.0,90079.0,0.00062863]
[1765144949997,0.16645412,90080.0,90079.0,0.00362863]
[1765144950321,0.49905112,90080.0,90079.0,0.00062863]
[1765144950687,0.50205112,90080.0,90079.0,0.00062863]
[1765144951467,0.50105112,90080.0,90079.0,0.00062863]
[1765144951774,0.17745412,90080.0,90079.0,0.00062863]
[1765144951912,0.08523699,90080.0,90079.0,0.00062863]
[1765144952129,0.01073102,90080.0,90079.0,0.00062863]
[1765144952485,0.01411815,90080.0,90079.0,0.00162863]
[1765144952693,0.07164114,90080.0,90079.0,0.00062863]
[1765144952902,0.06264114,90080.0,90079.0,0.00062863]
[1765144953031,0.06564114,90080.0,90079.0,0.14151037]
[1765144953236,0.07164114,90080.0,90079.0,0.23869037]
[1765144953466,0.06264114,90080.0,90079.0,0.23869037]
[1765144953640,0.00011815,90080.0,90079.0,0.23869037]
[1765144953855,0.00111815,90080.0,90079.0,0.25369037]
[1765144954063,0.00111815,90080.0,90079.0,0.24269037]
[1765144954444,0.00111815,90080.0,90079.0,0.25869037]
[1765144954624,0.00111815,90080.0,90079.0,0.14551037]
[1765144954871,0.00111815,90080.0,90079.0,0.03062863]
[1765144955072,0.00111815,90080.0,90079.0,0.02662863]
[1765144955073,0.00011815,90080.0,90079.0,0.02662863]
[1765144955408,0.06364114,90080.0,90079.0,0.03162863]
[1765144955753,0.17678401,90080.0,90079.0,0.03162863]
[1765144955957,0.17578401,90080.0,90079.0,0.02662863]
[1765144956096,0.17578401,90080.0,90079.0,0.00062863]
[1765144956497,0.17578401,90080.0,90079.0,0.0255645]
[1765144956697,0.17578401,90080.0,90079.0,0.0005645]
[1765144957116,0.17778401,90080.0,90079.0,0.0005645]
[1765144958334,0.17978401,90080.0,90079.0,0.0005645]
[1765144958974,0.50278401,90080.0,90079.0,0.0005645]
[1765144959120,0.53612206,90080.0,90079.0,0.0005645]
[1765144959889,0.53212085,90080.0,90079.0,0.0005645]
[1765144960090,0.54412085,90080.0,90079.0,0.0015645]
[1765144960900,0.53612085,90080.0,90079.0,0.0015645]
[1765144961257,0.44539085,90080.0,90079.0,0.0005645]
[1765144961461,0.08905401,90080.0,90079.0,0.0005645]
[1765144961684,0.09395401,90080.0,90079.0,0.0015645]
[1765144961884,0.18578401,90080.0,90079.0,0.0015645]
[1765144962112,0.18278401,90080.0,90079.0,0.0005645]
[1765144962515,0.17778401,90080.0,90079.0,0.0005645]
[1765144962851,0.17878401,90080.0,90079.0,0.0005645]
[1765144964957,0.18887915,90080.0,90079.0,0.0005645]
[1765144967286,0.08695401,90080.0,90079.0,0.0005645]
[1765144967613,0.08691401,90080.0,90079.0,0.0005645]
[1765144968156,0.17874401,90080.0,90079.0,0.0005645]
[1765144968434,0.17674401,90080.0,90079.0,0.0005645]
[1765144968570,0.17574401,90080.0,90079.0,0.0005645]
[1765144968774,0.18684274,90080.0,90079.0,0.0005645]
[1765144969313,0.18584274,90080.0,90079.0,0.0005645]
[1765144969891,0.18684274,90080.0,90079.0,0.0005645]
[1765144970140,0.18584274,90080.0,90079.0,0.0005645]
[1765144970562,0.19284274,90080.0,90079.0,0.0005645]
[1765144970771,0.1928425,90080.0,90079.0,0.0005645]
[1765144970900,0.1908425,90080.0,90079.0,0.0005645]
[1765144971307,0.1948425,90080.0,90079.0,0.0015645]
[1765144971776,0.1898425,90080.0,90079.0,0.0015645]
[1765144971966,0.1968425,90080.0,90079.0,0.0015645]
[1765144977465,0.5198425,90080.0,90079.0,0.0015645]
[1765144977688,0.54310196,90080.0,90079.0,0.0015645]
[1765144981164,0.06384897,90080.0,90079.0,0.0015645]
[1765144981387,0.24765437,90080.0,90079.0,0.0015645]
[1765144981521,0.26541437,90080.0,90079.0,0.0015645]
[1765144981739,0.41887736,90080.0,90079.0,0.0015645]
[1765144981940,0.44320926,90080.0,90079.0,0.0015645]
[1765144982461,0.41887736,90080.0,90079.0,0.0015645]
[1765144983366,0.74187736,90080.0,90079.0,0.0015645]
[1765144983536,0.76513682,90080.0,90079.0,0.0015645]
[1765144983940,0.28464402,90041.0,90040.0,0.0002]
[1765144984141,0.06252299,90041.0,90040.0,0.0002]
[1765144984797,0.06252299,90041.0,90040.0,0.06482]
[1765144984997,0.06252299,90041.0,90040.0,0.2366759]
[1765144985300,0.06352299,90041.0,90040.0,0.2646759]
[1765144985627,0.06252299,90041.0,90040.0,0.2366759]
[1765144985833,0.06352299,90041.0,90040.0,0.2496759]
[1765144986039,0.001,90041.0,90040.0,0.5696759]
[1765144986242,0.01776,90067.0,90064.0,0.01110321]
[1765144986450,0.00047,90065.0,90062.0,0.01110346]
[1765144986653,0.00034,90063.0,90062.0,0.01110346]
[1765144986878,0.00034,90063.0,90062.0,0.23317248]
[1765144987084,0.06252299,90066.0,90064.0,0.23316641]
[1765144987284,0.06252299,90066.0,90063.0,0.01110333]
[1765144987497,0.06252299,90066.0,90063.0,0.2331701]
[1765144988068,0.00097,90064.0,90063.0,0.2331701]
[1765144988238,0.00097,90064.0,90061.0,0.01110358]
[1765144988239,0.06252299,90063.0,90061.0,0.01110358]
[1765144988653,0.22209579,90052.0,90040.0,0.0002]
[1765144988857,0.22209579,90052.0,90044.0,0.01110568]
[1765144988858,0.06252299,90047.0,90044.0,0.01110568]
[1765144989256,0.10372299,90045.0,90044.0,0.01110568]
[1765144989457,0.06342299,90045.0,90044.0,0.01110568]
[1765144989694,0.15219299,90045.0,90044.0,0.01110568]
[1765144989862,0.06342299,90045.0,90044.0,0.01110568]
[1765144990468,0.15219299,90045.0,90044.0,0.01110568]
[1765144990669,0.06252299,90045.0,90044.0,0.01210568]
[1765144991335,0.06252299,90045.0,90044.0,0.01]
[1765144991457,0.37431415,90045.0,90044.0,0.01]
[1765144992072,0.37431415,90045.0,90044.0,0.009]
[1765144992490,0.37631415,90045.0,90044.0,0.009]
[1765144992696,0.37631415,90045.0,90040.0,0.0002]
[1765144992697,0.22212103,90041.0,90040.0,0.0002]
[1765144992935,0.22212103,90041.0,90020.0,0.0002]
[1765144992937,1.75272669,90031.0,90020.0,0.0002]
[1765144993152,1.80845127,90031.0,90030.0,0.00011853]
[1765144993378,1.93024161,90031.0,90030.0,0.00011853]
[1765144993586,1.90122127,90031.0,90030.0,0.00011853]
[1765144993821,1.92555317,90031.0,90030.0,0.00011853]
[1765144994051,1.92555317,90031.0,90000.0,9.38340911]
[1765144994052,1.67907557,90031.0,90000.0,9.38340911]
[1765144994276,1.15771174,90001.0,90000.0,9.38334362]
[1765144994506,1.25389267,90001.0,90000.0,9.38334362]
[1765144995139,1.25389267,90001.0,90000.0,9.32598519]
[1765144995345,1.31802585,90001.0,90000.0,9.29262676]
[1765144995570,1.32503972,90001.0,90000.0,9.29262676]
[1765144995781,1.25389267,90001.0,90000.0,9.29262676]
[1765144996199,1.22520667,90001.0,90000.0,9.29362676]
[1765144996393,1.20204693,90001.0,90000.0,9.29362676]
[1765144996605,0.99303674,90001.0,90000.0,9.29262676]
[1765144996818,0.98403674,90001.0,90000.0,9.29262676]
[1765144997219,0.99903674,90001.0,90000.0,9.29462676]
[1765144997430,0.99804942,90001.0,90000.0,8.74805432]
[1765144997638,1.02620356,90001.0,90000.0,8.74805432]
[1765144997849,1.00704942,90001.0,90000.0,8.74805432]
[1765144998085,0.99804942,90001.0,90000.0,8.74805432]
[1765144998303,0.82351275,90001.0,90000.0,8.74705432]
[1765144998502,0.83620775,90001.0,90000.0,8.74905432]
[1765144998724,0.89873074,90001.0,90000.0,8.74905432]
[1765144998946,0.89573074,90001.0,90000.0,8.74805432]
[1765144999392,0.89973074,90001.0,90000.0,8.74905432]
[1765144999602,0.55673074,90001.0,90000.0,8.74805432]
[1765144999811,0.44876274,90001.0,90000.0,8.74805432]
[1765145000014,0.45676274,90001.0,90000.0,8.74905432]
[1765145000485,0.77976274,90001.0,90000.0,8.74905432]
[1765145000703,0.02976,90001.0,90000.0,8.75142151]
[1765145000916,0.02976,90001.0,90000.0,8.81744151]
[1765145001134,0.02976,90001.0,90000.0,8.91011151]
[1765145001135,0.012,90001.0,90000.0,8.91011151]
[1765145001347,0.01776,90028.0,90023.0,0.01110827]
[1765145001558,0.01110765,90028.0,90024.0,0.04503]
[1765145001755,0.2399078,90031.0,90024.0,0.04503]
[1765145001756,0.0111074,90030.0,90026.0,0.0111079]
[1765145001964,0.01110753,90029.0,90024.0,0.05613814]
[1765145002171,0.01110765,90028.0,90025.0,0.01110802]
[1765145002386,0.01110827,90023.0,90016.0,0.05613913]
[1765145002593,0.01110827,90023.0,90017.0,0.01110901]
[1765145002796,0.06252299,90022.0,90019.0,0.01110876]
[1765145002999,0.01110827,90023.0,90017.0,0.01110901]
[1765145003455,0.0111079,90026.0,90019.0,0.01110876]
[1765145003648,0.06252299,90022.0,90020.0,0.01110864]
[1765145003851,0.06252299,90022.0,90012.0,0.23330065]
[1765145003852,0.06252299,90017.0,90012.0,0.23330065]
[1765145004068,0.06252299,90017.0,90015.0,0.22218519]
[1765145004290,0.06252299,90013.0,90000.0,8.74705432]
[1765145004507,0.06252299,90002.0,90000.0,8.74705432]
[1765145005132,0.28474184,90002.0,90000.0,8.74705432]
[1765145005343,0.07363373,90003.0,90000.0,8.74705432]
[1765145005874,0.002,90002.0,90000.0,8.74705432]
[1765145006271,0.06252299,90001.0,90000.0,8.74705432]
[1765145006515,0.06252299,90001.0,90000.0,8.75605432]
[1765145006966,0.06252299,90001.0,90000.0,8.74705432]
[1765145007172,0.06252299,90001.0,90000.0,8.75305432]
[1765145007386,0.06252299,90001.0,90000.0,8.74942151]
[1765145007551,0.06252299,90001.0,90000.0,8.75042151]
[1765145007755,0.15680299,90001.0,90000.0,8.76042151]
[1765145007890,0.47980299,90001.0,90000.0,8.75942151]
[1765145008328,0.48080299,90001.0,90000.0,8.75942151]
[1765145008791,0.47980299,90001.0,90000.0,8.75942151]
[1765145008944,0.47880299,90001.0,90000.0,8.74942151]
[1765145009127,0.48180299,90001.0,90000.0,8.75642151]
[1765145009590,0.48080299,90001.0,90000.0,8.75042151]
[1765145009756,0.48180299,90001.0,90000.0,8.75042151]
[1765145010160,0.48080299,90001.0,90000.0,8.75042151]
[1765145010365,0.48180299,90001.0,90000.0,8.75442151]
[1765145010654,0.47980299,90001.0,90000.0,8.75342151]
[1765145011064,0.48280299,90001.0,90000.0,8.75442151]
[1765145011491,1.16663899,90001.0,90000.0,8.75342151]
[1765145011912,1.16863899,90001.0,90000.0,8.75442151]
[1765145012111,0.69324299,90001.0,90000.0,8.75442151]
[1765145012317,0.68105699,90001.0,90000.0,8.75442151]
[1765145012496,0.49956299,90001.0,90000.0,8.75442151]
[1765145012888,0.75574699,90001.0,90000.0,8.75442151]
[1765145013091,0.68824699,90001.0,90000.0,8.75442151]
[1765145013651,0.49956299,90001.0,90000.0,8.75442151]
[1765145013852,0.65575899,90001.0,90000.0,8.75442151]
[1765145014438,0.49956299,90001.0,90000.0,8.75442151]
[1765145014618,0.14808299,90001.0,90000.0,8.75442151]
[1765145014815,0.17656299,90001.0,90000.0,8.75442151]
[1765145014983,0.14808299,90001.0,90000.0,8.64595968]
[1765145015183,0.003,90001.0,90000.0,8.64595968]
[1765145015436,0.06552299,90001.0,90000.0,8.64595968]
[1765145015643,0.22521975,90001.0,90000.0,8.64595968]
[1765145015838,0.31786975,90001.0,90000.0,8.64595968]
[1765145016040,0.38039274,90001.0,90000.0,8.64595968]
[1765145016204,1.00444774,90001.0,90000.0,8.64595968]
[1765145016819,1.25121374,90001.0,90000.0,8.64595968]
[1765145017026,0.81179074,90001.0,90000.0,8.64595968]
[1765145017225,0.71341662,90001.0,90000.0,8.64595968]
[1765145017431,0.62169665,90001.0,90000.0,8.64595968]
[1765145017631,0.28774274,90001.0,90000.0,8.64595968]
[1765145017866,0.28774274,90001.0,90000.0,8.48106007]
[1765145018486,0.06552299,90001.0,90000.0,8.48106007]
[1765145018863,0.06645299,90001.0,90000.0,8.48106007]
[1765145019433,0.15817299,90001.0,90000.0,8.48106007]
[1765145020104,0.28774274,90001.0,90000.0,8.48106007]
[1765145020892,0.06552299,90001.0,90000.0,8.48106007]
[1765145021409,0.06552299,90001.0,90000.0,8.63975007]
[1765145021410,0.003,90001.0,90000.0,8.63975007]
[1765145021613,0.003,90001.0,90000.0,8.74945513]
[1765145022458,0.002,90001.0,90000.0,8.74545513]
[1765145022627,0.003,90001.0,90000.0,8.74945513]
[1765145022827,0.003,90001.0,90000.0,8.74845513]